Cogmind - Beta 16.1 @@@ ROGUE MODE // 2026.03.28 @ 14:33:43 Player: APerTAS Result: Destroyed by G-47 Trooper with Particle Gun Performance ------------- Evolutions (2) 1000 Regions Visited (3) 600 Robots Destroyed (99) 495 Value Destroyed (1726) 1726 Prototype IDs (8) 160 Alien Tech Used (0) 0 Bonus (90) 90 TOTAL SCORE: 4071 Bonus ------- High Alert Combat Kills 90 Cogmind --------- Core Integrity 0/550 Matter 226/300 Energy 98/100 System Corruption 0% Temperature Cool (9) Movement Core (50) Location -8/Materials Parts ------- > --- POWER (2) -------- (None) > --- PROPULSION (2) --- (None) > --- UTILITY (4) ------ (None) > --- WEAPON (3) ------- Scythe > --- INVENTORY (5) ---- Wheel Improved Propulsion Shielding Heavy Armor Plating Plasma Cutter Peak State ------------ > --- POWER ------------ Heavy Ion Engine Heavy Ion Engine > --- PROPULSION ------- Wheel Compact Wheel > --- UTILITY ---------- Large Storage Unit Improved Propulsion Shielding Heavy Armor Plating > --- WEAPON ----------- Improved EM Shotgun Improved Assault Rifle Improved Assault Rifle > --- INVENTORY -------- Improved Ion Engine Heavy Ion Engine Wheel Improved Hover Unit Improved Hover Unit Heat Sink Medium Armor Plating Heavy Armor Plating Heavy EM Pulse Gun Improved Assault Rifle EMP Blaster Plasma Cutter [Rating: 29] Favorites ----------- Power Heavy Ion Engine Engine Heavy Ion Engine Power Core Light Nuclear Core Propulsion Wheel Treads Light Treads Leg Aluminum Leg Wheel Wheel Utility Large Storage Unit Device Heat Sink Storage Large Storage Unit Processor Targeting Computer Protection Medium Armor Plating Weapon Heavy EM Pulse Gun Energy Gun Heavy EM Pulse Gun Energy Cannon Advanced Beam Cannon Ballistic Gun Improved Assault Rifle Launcher EMP Blaster Slashing Weapon Scythe Build | -11 -10 -9 -8 ------- Run | Yrd Mat Mat Mat Slots Evolved 4 | . . 2 2 Power 1 | . . 1 . Propulsion . | . . . . Utility 2 | . . . 2 Weapon 1 | . . 1 . Parts Attached 74 | 12 19 31 12 Power 9 | 2 2 3 2 Engine 8 | 2 2 3 1 Core 1 | . . . 1 Reactor . | . . . . Propulsion 17 | 6 6 5 . Treads 1 | . 1 . . Leg 3 | 2 1 . . Wheel 13 | 4 4 5 . Hover . | . . . . Flight . | . . . . Utility 22 | 2 9 5 6 Device 10 | 1 4 2 3 Storage 5 | 1 3 1 . Processor 2 | . 2 . . Hackware . | . . . . Protection 5 | . . 2 3 Artifact . | . . . . Weapon 26 | 2 2 18 4 Energy Gun 11 | 2 1 7 1 Energy Cannon 1 | . . 1 . Ballistic Gun 12 | . 1 10 1 Ballistic Cannon . | . . . . Launcher 1 | . . . 1 Special Weapon . | . . . . Impact Weapon . | . . . . Slashing Weapon 1 | . . . 1 Piercing Weapon . | . . . . Special Melee Weapon . | . . . . Unidentified Prototypes 6 | . . 6 . Corrupted Parts 16 | 4 11 1 . System Corruption 32 | 10 19 3 . Parts Lost 28 | . 5 6 17 Power 5 | . 1 . 4 Propulsion 5 | . 2 1 2 Utility 6 | . . 1 5 Weapon 12 | . 2 4 6 Highest Loss Streak 15 | . 5 4 15 To Critical Strikes . | . . . . Average Backups 11 | 1 9 13 11 Power 1 | . . 1 1 Propulsion 3 | 1 3 4 2 Utility 3 | . 3 4 3 Weapon 2 | . 1 2 2 Tool/Special . | . . . . Unused Backups 14 | . . 7 7 Power 1 | . . . 1 Propulsion 3 | . . . 3 Utility 2 | . . . 2 Weapon 6 | . . 6 . Tool/Special 2 | . . 1 1 Average Slot Usage (%) 92 | . 92 96 70 Engine 18 | . 13 21 13 Wheel 22 | . 26 21 13 Device 3 | . 3 2 7 Storage 12 | . 16 11 7 Protection 5 | . . 7 6 Energy Gun 16 | . 23 14 6 Ballistic Gun 12 | . 3 15 13 Peak Build Rating 29 | 9 10 23 29 Average Rating 15 | 5 7 19 21 On Entrance 9 | . 6 7 23 Avg Prop Armor Cover (%) . | . . . . Naked Turns 20 | . . . 20 Heaviest Build 61 | 12 30 52 61 Greatest Support 26 | 20 26 26 26 Greatest Overweight (x) 2 | 2 2 2 2 Average Overweight (x) . | . . 1 1 Largest Inventory Capacity 15 | 8 15 15 15 Average Capacity 13 | 7 12 15 12 Most Carried 15 | 5 14 15 15 Average Carried 12 | 1 9 14 12 Final Capacity 15 | 8 15 15 5 Final Carried 15 | 5 14 15 5 Class Distribution -------------------- 43% | Tank 29% | Mutant 14% | Scavenger-Mutant 6% | Scavenger-Tank 5% | Gunner Dominant Class ---------------- Scavenger-Mutant | -10/Materials Tank | -9/Materials Tank | -8/Materials Resources | -11 -10 -9 -8 ----------- Run | Yrd Mat Mat Mat Matter Collected 1441 | 337 366 673 65 Remotely 58 | . 58 . . Salvage Created 3384 | 229 820 2052 283 Parts 234 | 21 45 146 22 Haulers Intercepted 6 | . 1 5 . Recyclers Shooed 5 | 1 3 1 . Parts Field Recycled . | . . . . Retrieved Matter . | . . . . Parts Self-Destructed . | . . . . Prevented . | . . . . Parts Restored . | . . . . Kills | -11 -10 -9 -8 ------- Run | Yrd Mat Mat Mat Combat Hostiles Destroyed 54 | . 11 37 6 Melee 1 | . . . 1 Guns 46 | . 10 34 2 AOE 6 | . 1 2 3 Classes Destroyed 12 | 3 5 3 1 Worker 9 | 2 4 3 . Builder 10 | . 4 5 1 Tunneler 7 | 5 2 . . Hauler 6 | . 1 5 . Recycler 7 | 1 3 2 1 Mechanic 1 | . . . 1 Operator 2 | . . 2 . Watcher 3 | . 1 2 . Swarmer 22 | . 6 13 3 Grunt 22 | . 5 14 3 Brawler 1 | . . 1 . Sentry 9 | . . 9 . Best Kill Streak 10 | 4 10 9 5 Combat Bots Only 6 | . 6 4 3 Max Kills in Single Turn 3 | 1 2 2 3 Gunslinging 1 | . . 1 . Exploded 2 | . 1 2 2 Melee 1 | . . . 1 Uniques/NPCs Destroyed . | . . . . Combat | -11 -10 -9 -8 -------- Run | Yrd Mat Mat Mat Hostile Shots Fired 320 | . 66 81 173 Missed 94 | . 15 33 46 Hits 226 | . 51 48 127 Projectile 226 | . 51 48 127 Critical Strikes 8 | . . 2 6 Damage Taken 3656 | 26 620 668 2342 Core 761 | . 138 70 553 Absorbed by Shields . | . . . . Core Remaining (%) 75 | 100 44 82 . Volleys Fired 200 | 19 88 77 16 Largest 3 | 2 2 3 3 Hottest 135 | 90 90 135 123 Shots Fired 377 | 24 116 201 36 Gun 374 | 24 116 201 33 Cannon . | . . . . Launcher 3 | . . . 3 Special . | . . . . Kinetic 129 | . 23 82 24 Thermal 45 | 5 39 1 . Explosive . | . . . . Electromagnetic 203 | 19 54 118 12 Robot Hit Streak 20 | 10 7 20 6 Robot Miss Streak 5 | 2 5 3 4 Penetration Max . | . . . . Secondary Targets 6 | . 1 5 . Max Gunslinging Chain 2 | . 1 2 . Shots Hit Robots 243 | 19 65 133 26 Core Hits 138 | 9 32 75 22 Critical Kills . | . . . . Critical Parts Destroyed 2 | . . 2 . Critical Strikes 3 | 1 . 2 . Destroy 2 | . . 2 . Corrupt 1 | 1 . . . Melee Attacks 2 | . . . 2 Impact . | . . . . Slashing 2 | . . . 2 Piercing . | . . . . Sneak Attacks . | . . . . Combat Hostiles . | . . . . Follow-up Attacks . | . . . . Damage Inflicted 4706 | 295 1013 2463 935 Guns 3686 | 249 851 2174 412 Cannons . | . . . . Explosions 954 | 46 162 289 457 Melee 66 | . . . 66 Ramming . | . . . . Kinetic 1153 | . 83 756 314 Thermal 1069 | 97 445 301 226 Explosive . | . . . . Electromagnetic 2418 | 198 485 1406 329 Impact . | . . . . Slashing 66 | . . . 66 Piercing . | . . . . Highest Corruption 30 | 10 30 8 . Average Corruption 10 | 8 24 3 . Corruption Purged . | . . . . Corruption Blocked . | . . . . Effects 68 | 3 38 27 . Message Errors 19 | 1 10 8 . Matter Fused 11 | 2 4 5 . Heat Flow Errors 6 | . 2 4 . Energy Discharges 5 | . 4 1 . Parts Rejected 1 | . 1 . . Data Loss (minor) 11 | . 7 4 . Data Loss (major) 4 | . 3 1 . Misfires 3 | . 1 2 . Alerts 2 | . 2 . . Weapon Failures 6 | . 4 2 . Overload Shots . | . . . . Overflow Damage 43 | 6 . 37 . Projectiles . | . . . . Explosions 43 | 6 . 37 . Melee . | . . . . Knockbacks . | . . . . Impact . | . . . . Kinetic . | . . . . Secondary . | . . . . Self-Inflicted Damage 211 | 26 105 80 . Shots 7 | 1 3 3 . Rammed . | . . . . Targets Rammed . | . . . . Kicked . | . . . . Crushed . | . . . . Highest Temperature 425 | 60 425 360 350 Average Temperature 102 | 27 126 87 183 Received Heat Transfer 876 | . 81 183 612 Effects 5 | . 2 3 . Energy Bleed 1 | . 1 . . Interference 4 | . 1 3 . Siege Activations . | . . . . Martial Activations . | . . . . Shielding Activations . | . . . . Robots Disrupted . | . . . . Combat Hostiles . | . . . . Robots Corrupted 1 | . . 1 . Combat Hostiles 1 | . . 1 . Parts Fried 7 | . . 7 . Impact Corruptions . | . . . . Robots Melted . | . . . . Combat Hostiles . | . . . . Parts Melted 2 | . 2 . . Heat Transferred 1744 | 198 821 375 350 Parts Sabotaged . | . . . . Parts Stolen . | . . . . Parts Stripped . | . . . . Power Chain Reactions 11 | 1 3 5 2 Alert | -11 -10 -9 -8 ------- Run | Yrd Mat Mat Mat Maximum Alert Level 2 | . . 2 1 Low Security (%) 47 | 100 100 26 5 Level 1 34 | . . 42 94 Level 2 18 | . . 30 . Level 3 . | . . . . Level 4 . | . . . . Level 5 . | . . . . High Security . | . . . . Max Security . | . . . . Peak Influence 660 | 10 186 660 295 Initial 273 | . 3 71 273 Average 246 | 2 56 349 256 Influence Increases 1919 | 40 425 1192 262 Destroy 0b10 Robot/C 1080 | . 220 740 120 Destroy 0b10 Robot/NC 230 | 40 75 100 15 Destroy Leader 248 | . 44 184 20 Successful Hack 60 | . 16 32 12 Disable Machine 15 | . 15 . . Destroy Structure 46 | . 10 31 5 Lose Combat Pursuer 240 | . 45 105 90 Influence Decreases 1674 | 35 260 715 664 Entered New Map 475 | . 2 99 374 Time Decay 919 | 35 208 556 120 Lost Part 280 | . 50 60 170 Squads Dispatched 10 | . 1 3 6 Investigation 7 | . 1 3 3 Extermination . | . . . . Reinforcement 3 | . . . 3 Assault . | . . . . Garrison . | . . . . Intercept . | . . . . Searches Triggered . | . . . . Construction Impeded . | . . . . Haulers Reinforced . | . . . . Active Scanning Responses . | . . . . Cargo Convoy Interrupts . | . . . . Stealth | -11 -10 -9 -8 --------- Run | Yrd Mat Mat Mat Distress Signals 4 | . 1 2 1 Communications Jammed . | . . . . Distress Signals . | . . . . Times Spotted 89 | . 18 47 24 Peak Tracking Total 11 | . 3 7 11 Tactical Retreats 9 | . 1 5 3 Traps | -11 -10 -9 -8 ------- Run | Yrd Mat Mat Mat Traps Triggered 6 | . 4 1 1 Indirectly 1 | . . . 1 Trap Hack Attempts . | . . . . Triggered . | . . . . Disarmed . | . . . . Reprogrammed . | . . . . Reused . | . . . . Traps Extracted . | . . . . Installed . | . . . . Triggered . | . . . . Machines | -11 -10 -9 -8 ---------- Run | Yrd Mat Mat Mat Machines Disabled 1 | . 1 . . Max in Single Turn 1 | . 1 . . Machines Repaired . | . . . . Machines Dismantled . | . . . . Machines Sabotaged . | . . . . Overloaded Fab Kills . | . . . . Hacking | -11 -10 -9 -8 --------- Run | Yrd Mat Mat Mat Machines Accessed 19 | . 4 12 3 Terminals 14 | . 2 9 3 Fabricators . | . . . . Repair Stations 1 | . . 1 . Recycling Units 3 | . 2 1 . Scanalyzers 1 | . . 1 . Garrison Access . | . . . . Total Hacks 56 | . 9 35 12 Successful 23 | . 2 16 5 Failed 33 | . 7 19 7 Catastrophic 5 | . 1 3 1 Database Lockouts . | . . . . Manual 30 | . 8 12 10 Terminals 41 | . 5 24 12 Fabricators . | . . . . Repair Stations 3 | . . 3 . Recycling Units 9 | . 4 5 . Scanalyzers 3 | . . 3 . Garrison Access . | . . . . Terminal Hacks 10 | . . 8 2 Part Schematic 1 | . . 1 . Robot Analysis 3 | . . 1 2 Prototype ID Bank 1 | . . 1 . Branch Access Points 1 | . . 1 . Emergency Access Points 1 | . . 1 . Terminal Index 1 | . . 1 . Scanalyzer Index 1 | . . 1 . Patrol Status 1 | . . 1 . Fabricator Hacks . | . . . . Repair Station Hacks 1 | . . 1 . Refit 1 | . . 1 . Recycling Unit Hacks . | . . . . Scanalyzer 3 | . . 3 . Insert Component 1 | . . 1 . Analyze 1 | . . 1 . Retrieve Study 1 | . . 1 . Garrison Access Hacks . | . . . . Unauthorized Hacks 9 | . 2 4 3 Terminals 4 | . . 1 3 Botnet 3 | . . 1 2 Disrupt 1 | . . . 1 Fabricators . | . . . . Repair Stations . | . . . . Recycling Units 5 | . 2 3 . Reject 1 | . . 1 . Recyclers 2 | . 1 1 . Mask 2 | . 1 1 . Scanalyzers . | . . . . Garrison Access . | . . . . Data Cores Recovered 2 | . . 2 . Used . | . . . . Hacking Detections 19 | . 4 12 3 Full Trace Events 5 | . 1 3 1 Feedback Events . | . . . . Feedback Blocked . | . . . . Robot Schematics Acquired . | . . . . Robots Built . | . . . . Authchips . | . . . . Time . | . . . . Total Robot Build Rating . | . . . . Part Schematics Acquired 2 | . . 2 . Parts Built . | . . . . Authchips . | . . . . Time . | . . . . Total Part Build Rating . | . . . . Part Studies Acquired 1 | . . 1 . Parts Repaired . | . . . . Time . | . . . . Parts Recycled . | . . . . Recycled Matter . | . . . . Retrieved Matter . | . . . . Retrieved Components . | . . . . Parts Scanalyzed 1 | . . 1 . Part Schematics Acquired 1 | . . 1 . Parts Damaged . | . . . . Bothacking | -11 -10 -9 -8 ------------ Run | Yrd Mat Mat Mat Used RIF Installer . | . . . . Robots Hacked . | . . . . Non-combat . | . . . . Combat . | . . . . Robot Hacks Applied . | . . . . Relay Couplers Released . | . . . . Fabnet Peak Effective % . | . . . . Robots Rewired . | . . . . Allies Hacked . | . . . . Hacks Repelled . | . . . . Allies | -11 -10 -9 -8 -------- Run | Yrd Mat Mat Mat Total Allies . | . . . . Largest Group . | . . . . Highest-Rated Group . | . . . . Highest-Rated Ally . | . . . . Total Orders . | . . . . Ally Attacks . | . . . . Total Damage . | . . . . Kills . | . . . . Allies Corrupted . | . . . . Allies Melted . | . . . . Intel | -11 -10 -9 -8 ------- Run | Yrd Mat Mat Mat Active Infowar (turns) 189 | 1 3 . 185 Terrain 1 | 1 . . . Structural 3 | . 3 . . Seismic 185 | . . . 185 Robot Analysis Total 3 | . . 1 2 Derelict Logs Recovered . | . . . . Drone Launches . | . . . . Drone Recoveries . | . . . . Exploration | -11 -10 -9 -8 ------------- Run | Yrd Mat Mat Mat Turns Passed 2724 | 179 664 1627 254 Spaces Moved 1825 | 106 433 1113 173 Core 84 | 18 . . 66 Treads . | . . . . Legs 44 | 44 . . . Wheels 1697 | 44 433 1113 107 Hover . | . . . . Flight . | . . . . Fastest Speed 50 | 50 80 85 50 Average Speed 97 | 98 87 101 96 Slowest Speed 150 | 150 110 130 150 Overloaded Moves . | . . . . Propulsion Burnouts . | . . . . Robots Hopped . | . . . . Potential Cave-ins . | . . . . Cave-ins Triggered . | . . . . Exploration Rate (%) 44 | 5 67 84 22 Regions Visited 3 Branch Regions . Pre-discovered Areas . | . . . . Known Exits Taken . | . . . . Unknown Exits Taken 3 | 1 1 1 . Scrap Searched . | . . . . Spaces Dug . | . . . . Terrain Destroyed 37 | 3 9 20 5 Melee . | . . . . Projectile . | . . . . AOE 37 | 3 9 20 5 Terrain Rammed . | . . . . Walls Destroyed . | . . . . Machines Disabled . | . . . . Actions | -11 -10 -9 -8 --------- Run | Yrd Mat Mat Mat Total 2430 | 150 592 1460 228 Wait 242 | 9 30 187 16 Move 1822 | 105 432 1112 173 Hop . | . . . . Pick Up 28 | 3 5 17 3 Fast Attach 33 | 7 14 7 5 Attach 10 | . 3 1 6 Detach 4 | 1 2 . 1 Swap 53 | 6 16 28 3 Drop 35 | . 2 30 3 Fire 200 | 19 88 77 16 Melee 2 | . . . 2 Ram . | . . . . Kick . | . . . . Crush . | . . . . Escape Stasis . | . . . . Rewire 1 | . . 1 . Trap . | . . . . Miscellaneous . | . . . . Route ------- -11/Scrapyard -10/Materials (discovered 4 exits: *Mat x3 / [*Min]) -9/Materials (discovered 4 exits: *Mat x3 / *Min) -8/Materials History --------- Turn | Location | Event 3 | -11/Scrapyard | Discovered new exit (range 15) 157 | -11/Scrapyard | System corruption reached 10% 180 | -11/Scrapyard | Entered Materials 318 | -10/Materials | Discovered new exit (range 9) 441 | -10/Materials | Discovered new exit (range 8) 607 | -10/Materials | System corruption reached 30% 625 | -10/Materials | Discovered new exit (range 9) 688 | -10/Materials | Lost 5 parts (1p2n2w) 752 | -10/Materials | Discovered new exit (range 16) 790 | -10/Materials | Core integrity fell below 50% 844 | -10/Materials | Entered another Materials area 844 | -9/Materials | Evolved 2 slots: Power x1, Weapon x1 1309 | -9/Materials | Discovered new exit (range 15) 1397 | -9/Materials | Lost 4 parts (1n1u2w) 1488 | -9/Materials | Discovered new exit (range 3) 1988 | -9/Materials | Discovered new exit (range 3) 2056 | -9/Materials | Build established: Tank 2382 | -9/Materials | Discovered new exit (range 16) 2434 | -9/Materials | Identified exit to Mines 2471 | -9/Materials | Entered another Materials area 2471 | -8/Materials | Evolved 2 slots: Utility x2 2672 | -8/Materials | Released all parts (1) 2674 | -8/Materials | Core integrity fell below 50% 2696 | -8/Materials | Core integrity fell below 20% 2703 | -8/Materials | Lost 15 parts (3p2n4u6w) 2725 | -8/Materials | Destroyed by G-47 Trooper with Particle Gun Last Messages --------------- 02702_ Identified Lgt. Nuclear Core. 02705_ Acquired Imp. Heat Sink. 02706_ K-01 Serf collects debris. 02712_ Connecting with Terminal... 02712_ ALERT: Suspicious activity at Terminal M002. Dispatching Investigation squad. 02713_ Penetrated by Slug. 02713_ K-01 Serf collects debris. 02714_ G-47 Trooper system corruption misinterpreted. 02714_ G-47 Trooper triggered Alarm Trap. 02714_ An alarm sounds. 02714_ ALERT: Alarm triggered, dispatching investigation squad. 02716_ K-01 Serf collects debris. 02717_ Imp. Heat Sink destroyed. 02719_ Penetrated by Slug. 02720_ K-01 Serf collects debris. 02721_ Lgt. Nuclear Core destroyed. 02722_ Penetrated by Slug. 02723_ K-01 Serf collects debris. Map ----- +----------------------------------------------------+ | | | | | | | | | | | | | | | ???????????????????????????????????? | | ???????????????????????????????????? | | ???????????????????????????????????? | | ????????????????""?#???????????????? | | ????????????????"" #???????????????? | | ???????????????? #???????????????? | | ???????????????? #???????????????? | | ?????????##+#####"##???????????????? | | ???????### #???????????????? | | ???????? #???????????????? | | ?????????# +???????????????? | | ###+###### #???????????????? | | # ^ #??????########## | | # #??????# # | | # #???#### = # | | # !!! """ #???# #! # | | ## !!! """ g g ##### # ! # | | # !!! """ "T" ; # | | + Y h @# # | | # g g # # | | # ###### #### ##+##### # | | ?# #????#+#??## ##??????# # | | ?# #??????????# #???????########## | | ?# #??????????+ #????????????????? | | ?# #??????????# #????????????????? | | ?# #??????????# #????????????????? | | ?# #??????????# #????????????????? | | ## #??????????# #????????????????? | | # #??????????# +????????????????? | | "# #??????????+ #????????????????? | | "# #??????????# #????????????????? | | "# #??????????# #????????????????? | | # #??????????? #????????????????? | | # #??????????? ?????????????????? | | # #??????????????????????????????? | | " #??????????????????????????????? | | # ####???????????????????????????? | | ## ! !### #???????????????? | | !=%| %!= #???????????????? | | !%[=*=%= #????????????????????? | | %[!%%==== #????????????????????? | | === !% / ?????????????????? | | ###### ????????????????? | +----------------------------------------------------+ Best States ------------- Heat Dissipation 45 Coolant Potential 50 Energy Generation 23 Energy Capacity 460 Matter Stores 321 Matter Capacity 350 Sight Range 16 Terrain Scan Density 85 Armor Coverage 600 Evasion (%) 55 Targeting Accuracy 5 Item Schematics ----------------- Imp. Hover Unit | -9/Materials | Hacked Hvy. Armor Plating | -9/Materials | Scanalyzed Robot Schematics ------------------ None Fabricated ------------ Nothing Repaired ---------- Nothing Studied --------- Wheel | -9/Materials | Hacked Alien Tech Used ----------------- None Achievements -------------- None Challenges ------------ None Game ------ Seed MeleeAlphaChaincannon Manual? 0 Play Time 00:43:49 Cumulative 62.8 hours Start 2026.03.28 @ 13:51:34 End 2026.03.28 @ 14:33:43 Sessions 1 Manual Loads 0 Difficulty Rogue Special Mode None Game No. 197 Rogue 197 Adventurer 0 Explorer 0 Win Type - Total 0 Types 0/0/0/0/0/0/0/0/0/0 Lore% 62 Gallery% 36 Achievement% 36 Wizard Run 0 Options --------- Layout 0 ASCII 0 Keyboard 1 Movement Arrows Keybinds 0 Fullscreen 1 Font 24/Terminus Map View 64x52 Zoom Use 0% Tactical HUD 1 Map Filters NONE Filters NONE Steam 1 RUN: 531d0078-f53b-4096-b28c-530a809232aa